fUSD/lending_fUSD_20260630
["ID","MTS","AMOUNT","RATE_DAILY","PERIOD"]
[426741490,1782774649000,-305.86635947,0.00024927,2]
[426741481,1782774649000,-321.95246552,0.00024884,2]
[426741486,1782774649000,-352.90849531,0.00024927,2]
[426741482,1782774649000,-167.54671676,0.00024884,2]
[426741483,1782774649000,-232.16,0.00024886,7]
[426741489,1782774649000,-209.47141511,0.00024927,2]
[426741484,1782774649000,-235.86108831,0.00024927,2]
[426741488,1782774649000,-365.24668469,0.00024927,2]
[426741485,1782774649000,-375.62663708,0.00024927,2]
[426741499,1782774649000,-151.0,0.00024997,7]
[426741495,1782774649000,-5947.43,0.00024961,7]
[426741503,1782774649000,-300.0,0.00024999,10]
[426741498,1782774649000,-154.46935751,0.00024967,2]
[426741491,1782774649000,-1004.0,0.00024932,2]
[426741501,1782774649000,-300.0,0.00024999,10]
[426741493,1782774649000,-246.22,0.00024961,7]
[426741494,1782774649000,-309.74,0.00024961,7]
[426741502,1782774649000,-300.0,0.00024999,10]
[426741492,1782774649000,-563.48,0.00024953,2]
[426741496,1782774649000,-28860.28,0.00024961,7]
[426741533,1782774649000,-3035.015411,0.00025,2]
[426741531,1782774649000,-250.069761,0.00025,2]
[426741534,1782774649000,-3035.015411,0.00025,2]
[426741566,1782774649000,-451.85279772,0.00025663,2]
[426741567,1782774649000,-290.14612559,0.00025663,2]
[426741565,1782774649000,-242.37690128,0.00025663,2]
[426741568,1782774649000,-306.46855053,0.00025663,2]
[426741573,1782774649000,-278.29241529,0.00025663,2]
[426741570,1782774649000,-485.37860775,0.00025663,2]
[426741571,1782774649000,-214.00308607,0.00025663,2]
[426741569,1782774649000,-242.61557316,0.00025663,2]
[426741575,1782774649000,-229.24227464,0.00025663,2]
[426741582,1782774649000,-564.77815594,0.00025663,2]
[426741580,1782774649000,-548.05003454,0.00025663,2]
[426741586,1782774649000,-557.03024656,0.00025674,2]
[426741584,1782774649000,-185.75171505,0.00025674,2]
[426741583,1782774649000,-530.80780185,0.00025674,2]
[426741576,1782774649000,-217.3520439,0.00025663,2]
[426741577,1782774649000,-606.80423092,0.00025663,2]
[426741578,1782774649000,-248.99164921,0.00025663,2]
[426741585,1782774649000,-305.06135975,0.00025674,2]
[426741581,1782774649000,-495.12596545,0.00025663,2]
[426741587,1782774649000,-505.0,0.00025696,11]
[426741579,1782774649000,-229.81167333,0.00025663,2]
[426741589,1782774649000,-247.820006,0.00025704,2]
[426741592,1782774649000,-430.09045578,0.00025704,2]
[426741590,1782774649000,-319.44037368,0.00025704,2]
[426741588,1782774649000,-471.40552977,0.000257,2]
[426741535,1782774649000,-3035.015411,0.00025,2]
[426741593,1782774649000,-528.385815,0.00025704,2]
[426741574,1782774649000,-203.72030867,0.00025663,2]
[426741564,1782774649000,-533.56879436,0.00025663,2]
[426741591,1782774649000,-442.92053218,0.00025704,2]
[426741563,1782774649000,-578.6580826,0.00025663,2]
[426741572,1782774649000,-591.66775325,0.00025663,2]
[426741532,1782774649000,-250.069761,0.00025,2]
[426741537,1782774649000,-192.710337,0.00025,2]
[426741538,1782774649000,-192.710337,0.00025,2]
[426741546,1782774649000,-233.0,0.0002552,2]
[426741545,1782774649000,-150.0,0.00025373,2]
[426741540,1782774649000,-192.710337,0.00025,2]
[426741547,1782774649000,-232.16,0.00025572,7]
[426741544,1782774649000,-232.16,0.00025343,2]
[426741542,1782774649000,-152.0,0.00025158,3]
[426741541,1782774649000,-232.16,0.00025115,30]
[426741548,1782774649000,-459.66118405,0.00025614,2]
[426741549,1782774649000,-356.25771732,0.00025659,2]
[426741536,1782774649000,-3035.015411,0.00025,2]
[426741554,1782774649000,-523.22353398,0.00025659,2]
[426741559,1782774649000,-248.36443086,0.00025662,2]
[426741556,1782774649000,-655.35450628,0.00025662,2]
[426741555,1782774649000,-485.98258975,0.00025659,2]
[426741558,1782774649000,-485.11133593,0.00025662,2]
[426741543,1782774649000,-2000.0,0.000253,2]
[426741560,1782774649000,-159.99787058,0.00025662,2]
[426741557,1782774649000,-611.43424135,0.00025662,2]
[426741561,1782774649000,-371.20744927,0.00025662,2]
[426741550,1782774649000,-541.19162723,0.00025659,2]
[426741562,1782774649000,-477.89441863,0.00025663,2]
[426741552,1782774649000,-530.23436792,0.00025659,2]
[426741551,1782774649000,-353.5690558,0.00025659,2]
[426741553,1782774649000,-284.76188758,0.00025659,2]
[426741634,1782774650000,-151.0,0.000258,2]
[426741636,1782774650000,-151.0,0.000258,2]
[426741631,1782774650000,-206.895698,0.000258,2]
[426741635,1782774650000,-151.0,0.000258,2]
[426741625,1782774650000,-151.0,0.000258,2]
[426741626,1782774650000,-170.143497,0.000258,2]
[426741630,1782774650000,-170.143497,0.000258,2]
[426741628,1782774650000,-170.143497,0.000258,2]
[426741629,1782774650000,-206.895698,0.000258,2]
[426741627,1782774650000,-170.143497,0.000258,2]
[426741632,1782774650000,-206.895698,0.000258,2]
[426741633,1782774650000,-206.895698,0.000258,2]
[426741642,1782774650000,-1875.057436,0.000258,2]
[426741646,1782774650000,-185.963335,0.000258,2]
[426741637,1782774650000,-151.0,0.000258,2]
[426741643,1782774650000,-151.0,0.000258,2]
[426741644,1782774650000,-151.0,0.000258,2]
[426741645,1782774650000,-185.963335,0.000258,2]
[426741640,1782774650000,-1875.057436,0.000258,2]
[426741641,1782774650000,-1875.057436,0.000258,2]
[426741638,1782774650000,-151.0,0.000258,2]
[426741639,1782774650000,-1875.057436,0.000258,2]
[426741648,1782774650000,-185.963335,0.000258,2]
[426741650,1782774650000,-390.280005,0.000258,2]
[426741621,1782774650000,-151.0,0.000258,2]
[426741647,1782774650000,-185.963335,0.000258,2]
[426741620,1782774650000,-161.244745,0.000258,2]
[426741604,1782774650000,-529.36274297,0.00025766,2]
[426741623,1782774650000,-151.0,0.000258,2]
[426741594,1782774650000,-269.63362701,0.00025721,2]
[426741595,1782774650000,-482.92869828,0.00025721,2]
[426741596,1782774650000,-166.57269421,0.00025721,2]
[426741597,1782774650000,-335.09343351,0.00025721,2]
[426741598,1782774650000,-207.53980692,0.00025721,2]
[426741599,1782774650000,-203.4711664,0.00025721,2]
[426741608,1782774650000,-458.79953921,0.00025766,2]
[426741600,1782774650000,-502.0,0.00025753,2]
[426741651,1782774650000,-390.280005,0.000258,2]
[426741610,1782774650000,-222.64013693,0.00025776,2]
[426741612,1782774650000,-827.0,0.00025781,2]
[426741611,1782774650000,-430.21276821,0.00025776,2]
[426741624,1782774650000,-151.0,0.000258,2]
[426741606,1782774650000,-547.87002704,0.00025766,2]
[426741603,1782774650000,-563.43995562,0.00025766,2]
[426741602,1782774650000,-471.72217662,0.00025766,2]
[426741605,1782774650000,-491.20786009,0.00025766,2]
[426741601,1782774650000,-431.93206847,0.00025766,2]
[426741616,1782774650000,-300.0,0.00025799,10]
[426741614,1782774650000,-151.0,0.00025797,7]
[426741615,1782774650000,-151.0,0.00025797,7]
[426741618,1782774650000,-4723.8309444,0.000258,2]
[426741613,1782774650000,-151.0,0.00025797,7]
[426741617,1782774650000,-1797004.33792272,0.000258,2]
[426741619,1782774650000,-659.4118408,0.000258,2]
[426741622,1782774650000,-277.297046,0.000258,2]
[426741607,1782774650000,-418.94283022,0.00025766,2]
[426741649,1782774650000,-390.280005,0.000258,2]
[426741609,1782774650000,-511.06767563,0.00025766,2]
[426741657,1782774650000,-3035.015411,0.000258,2]
[426741695,1782774650000,-229.17957011,0.00026221,2]
[426741696,1782774650000,-168.88152899,0.00026221,2]
[426741684,1782774650000,-873.80600837,0.00026219,2]
[426741685,1782774650000,-815.24565514,0.00026219,2]
[426741688,1782774650000,-637.19255818,0.00026221,2]
[426741692,1782774650000,-156.18192088,0.00026221,2]
[426741687,1782774650000,-319.99574117,0.00026219,2]
[426741691,1782774650000,-192.38320141,0.00026221,2]
[426741690,1782774650000,-169.80619532,0.00026221,2]
[426741689,1782774650000,-771.54411013,0.00026221,2]
[426741686,1782774650000,-646.81511457,0.00026219,2]
[426741693,1782774650000,-190.18372415,0.00026221,2]
[426741680,1782774650000,-530.3535837,0.00026216,2]
[426741694,1782774650000,-374.83633304,0.00026221,2]
[426741699,1782774650000,-219.43357672,0.00026221,2]
[426741705,1782774650000,-151.03583196,0.00026221,2]
[426741704,1782774650000,-171.76589784,0.00026221,2]
[426741701,1782774650000,-210.42658487,0.00026221,2]
[426741706,1782774650000,-413.90750825,0.00026221,2]
[426741698,1782774650000,-164.08299411,0.00026221,2]
[426741703,1782774650000,-432.6875066,0.00026221,2]
[426741700,1782774650000,-711.42505915,0.00026221,2]
[426741702,1782774650000,-496.72886171,0.00026221,2]
[426741708,1782774650000,-484.75380255,0.00026221,2]
[426741709,1782774650000,-434.32580055,0.00026221,2]
[426741652,1782774650000,-390.280005,0.000258,2]
[426741697,1782774650000,-161.69376989,0.00026221,2]
[426741676,1782774650000,-599.17,0.000261,2]
[426741707,1782774650000,-166.4894119,0.00026221,2]
[426741679,1782774650000,-721.58883631,0.00026216,2]
[426741677,1782774650000,-233.0673327,0.00026216,2]
[426741653,1782774650000,-250.069761,0.000258,2]
[426741654,1782774650000,-250.069761,0.000258,2]
[426741658,1782774650000,-3035.015411,0.000258,2]
[426741656,1782774650000,-250.069761,0.000258,2]
[426741671,1782774650000,-9533.36905003,0.00026,5]
[426741670,1782774650000,-220.9790999,0.00026,2]
[426741667,1782774650000,-613.53449459,0.0002599,2]
[426741669,1782774650000,-4617.9892356,0.00026,2]
[426741660,1782774650000,-3035.015411,0.000258,2]
[426741661,1782774650000,-232.16,0.000258,30]
[426741659,1782774650000,-3035.015411,0.000258,2]
[426741665,1782774650000,-192.710337,0.000258,2]
[426741655,1782774650000,-250.069761,0.000258,2]
[426741664,1782774650000,-192.710337,0.000258,2]
[426741666,1782774650000,-154.46935744,0.00025927,2]
[426741674,1782774650000,-250.0,0.00026027,7]
[426741675,1782774650000,-232.16,0.00026029,2]
[426741681,1782774650000,-158.27014302,0.00026216,2]
[426741683,1782774650000,-647.97678634,0.00026216,2]
[426741678,1782774650000,-534.38657598,0.00026216,2]
[426741673,1782774650000,-429.57,0.00026027,7]
[426741672,1782774650000,-162.63,0.00026,7]
[426741668,1782774650000,-1136.71647631,0.00026,2]
[426741663,1782774650000,-192.710337,0.000258,2]
[426741662,1782774650000,-192.710337,0.000258,2]
[426741682,1782774650000,-153.33589812,0.00026216,2]
[426741744,1782774651000,-169.25631379,0.00026232,2]
[426741751,1782774651000,-645.13568367,0.00026262,2]
[426741745,1782774651000,-457.59203963,0.00026232,2]
[426741741,1782774651000,-317.1586583,0.00026232,2]
[426741749,1782774651000,-664.38079827,0.00026262,2]
[426741739,1782774651000,-165.37696929,0.00026232,2]
[426741737,1782774651000,-409.26730357,0.00026232,2]
[426741742,1782774651000,-165.89211282,0.00026232,2]
[426741736,1782774651000,-707.7437358,0.00026232,2]
[426741748,1782774651000,-479.16056052,0.00026262,2]
[426741738,1782774651000,-213.98099958,0.00026232,2]
[426741755,1782774651000,-265.46981633,0.0002628,2]
[426741746,1782774651000,-742.70699541,0.00026232,2]
[426741747,1782774651000,-232.16,0.00026257,7]
[426741750,1782774651000,-342.91394514,0.00026262,2]
[426741752,1782774651000,-704.51441999,0.00026262,2]
[426741753,1782774651000,-185.53824093,0.00026262,2]
[426741759,1782774651000,-426.00662091,0.0002628,2]
[426741757,1782774651000,-333.14538841,0.0002628,2]
[426741754,1782774651000,-539.26725402,0.0002628,2]
[426741756,1782774651000,-643.90493103,0.0002628,2]
[426741734,1782774651000,-660.16795393,0.00026221,2]
[426741758,1782774651000,-188.98369876,0.0002628,2]
[426741743,1782774651000,-246.28385176,0.00026232,2]
[426741735,1782774651000,-753.03754125,0.00026221,2]
[426741719,1782774651000,-428.00617215,0.00026221,2]
[426741731,1782774651000,-497.98329842,0.00026221,2]
[426741763,1782774651000,-174.19192964,0.0002628,2]
[426741711,1782774651000,-386.76487263,0.00026221,2]
[426741710,1782774651000,-169.83013097,0.00026221,2]
[426741713,1782774651000,-403.38515777,0.00026221,2]
[426741712,1782774651000,-602.47039695,0.00026221,2]
[426741714,1782774651000,-580.29225119,0.00026221,2]
[426741715,1782774651000,-331.67554682,0.00026221,2]
[426741717,1782774651000,-485.23114631,0.00026221,2]
[426741716,1782774651000,-459.7028258,0.00026221,2]
[426741718,1782774651000,-647.171477,0.00026221,2]
[426741722,1782774651000,-384.76640283,0.00026221,2]
[426741727,1782774651000,-458.48454928,0.00026221,2]
[426741724,1782774651000,-556.58483058,0.00026221,2]
[426741720,1782774651000,-788.89033767,0.00026221,2]
[426741721,1782774651000,-442.41802345,0.00026221,2]
[426741723,1782774651000,-380.3674483,0.00026221,2]
[426741726,1782774651000,-438.86715345,0.00026221,2]
[426741728,1782774651000,-420.85316974,0.00026221,2]
[426741725,1782774651000,-407.44061734,0.00026221,2]
[426741740,1782774651000,-161.44398867,0.00026232,2]
[426741732,1782774651000,-459.62334666,0.00026221,2]
[426741733,1782774651000,-730.73337939,0.00026221,2]
[426741729,1782774651000,-434.70408779,0.00026221,2]
[426741730,1782774651000,-809.0723079,0.00026221,2]
[426741761,1782774651000,-502.64015027,0.0002628,2]
[426741760,1782774651000,-164.36863685,0.0002628,2]
[426741762,1782774651000,-415.07961383,0.0002628,2]
[426741789,1782774651000,-317.0,0.000267,2]
[426741794,1782774651000,-152.0,0.00026774,3]
[426741793,1782774651000,-152.0,0.00026774,3]
[426741797,1782774651000,-152.0,0.00026774,3]
[426741792,1782774651000,-232.16,0.00026714,2]
[426741790,1782774651000,-890.0,0.000267,2]
[426741795,1782774651000,-152.0,0.00026774,3]
[426741799,1782774651000,-901.98604539,0.00026774,2]
[426741811,1782774651000,-884.67966976,0.0002679,2]
[426741808,1782774651000,-913.41672424,0.00026779,2]
[426741806,1782774651000,-808.96434625,0.00026779,2]
[426741801,1782774651000,-808.51889321,0.00026777,2]
[426741804,1782774651000,-753.08799619,0.00026779,2]
[426741802,1782774651000,-796.49069772,0.00026779,2]
[426741809,1782774651000,-825.20994242,0.00026779,2]
[426741800,1782774651000,-945.90429971,0.00026774,2]
[426741810,1782774651000,-941.29692657,0.00026779,2]
[426741803,1782774651000,-889.28132393,0.00026779,2]
[426741807,1782774651000,-986.11292209,0.00026779,2]
[426741813,1782774651000,-928.38374427,0.0002679,2]
[426741812,1782774651000,-869.16631913,0.0002679,2]
[426741815,1782774651000,-151.0,0.00026797,7]
[426741814,1782774651000,-151.0,0.00026797,7]
[426741791,1782774651000,-310.0,0.000267,2]
[426741796,1782774651000,-152.0,0.00026774,3]
[426741805,1782774651000,-925.08858814,0.00026779,2]
[426741788,1782774651000,-1000.0,0.000267,2]
[426741767,1782774651000,-707.58326492,0.00026325,2]
[426741798,1782774651000,-152.0,0.00026774,3]
[426741765,1782774651000,-2000.0,0.000263,2]
[426741775,1782774651000,-569.52377516,0.00026325,2]
[426741768,1782774651000,-751.25327416,0.00026325,2]
[426741766,1782774651000,-215.96603423,0.00026325,2]
[426741764,1782774651000,-406.94233281,0.0002628,2]
[426741771,1782774651000,-730.49336938,0.00026325,2]
[426741773,1782774651000,-611.73271894,0.00026325,2]
[426741769,1782774651000,-705.81699062,0.00026325,2]
[426741772,1782774651000,-628.41424532,0.00026325,2]
[426741774,1782774651000,-681.42356751,0.00026325,2]
[426741770,1782774651000,-736.81179013,0.00026325,2]
[426741780,1782774651000,-168.011,0.00026341,2]
[426741781,1782774651000,-250.0,0.00026341,2]
[426741778,1782774651000,-495.640012,0.00026336,2]
[426741779,1782774651000,-645.31915231,0.00026336,2]
[426741785,1782774651000,-232.16,0.00026486,30]
[426741784,1782774651000,-28075.92807695,0.000264,2]
[426741783,1782774651000,-191.0,0.00026341,2]
[426741776,1782774651000,-697.63137863,0.00026325,2]
[426741786,1782774651000,-505.0,0.00026519,12]
[426741782,1782774651000,-249.636,0.00026341,2]
[426741787,1782774651000,-150.0,0.00026641,2]
[426741777,1782774651000,-445.28027385,0.00026335,2]
[426741855,1782774652000,-3035.015411,0.000268,2]
[426741858,1782774652000,-192.710337,0.000268,2]
[426741849,1782774652000,-250.069761,0.000268,2]
[426741850,1782774652000,-250.069761,0.000268,2]
[426741851,1782774652000,-250.069761,0.000268,2]
[426741856,1782774652000,-3035.015411,0.000268,2]
[426741854,1782774652000,-3035.015411,0.000268,2]
[426741852,1782774652000,-250.069761,0.000268,2]
[426741843,1782774652000,-185.963335,0.000268,2]
[426741847,1782774652000,-390.280005,0.000268,2]
[426741844,1782774652000,-185.963335,0.000268,2]
[426741853,1782774652000,-3035.015411,0.000268,2]
[426741857,1782774652000,-192.710337,0.000268,2]
[426741869,1782774652000,-232.16,0.00026943,7]
[426741860,1782774652000,-192.710337,0.000268,2]
[426741866,1782774652000,-872.03922329,0.00026885,2]
[426741862,1782774652000,-330.32,0.00026829,7]
[426741864,1782774652000,-913.11671173,0.00026885,2]
[426741861,1782774652000,-1867.71,0.00026829,2]
[426741863,1782774652000,-804.88116379,0.00026839,2]
[426741870,1782774652000,-10647.08748402,0.00027,5]
[426741867,1782774652000,-154.46935744,0.00026887,2]
[426741868,1782774652000,-600.0,0.000269,9]
[426741865,1782774652000,-764.66589868,0.00026885,2]
[426741875,1782774652000,-150.0,0.00027397,2]
[426741842,1782774652000,-185.963335,0.000268,2]
[426741859,1782774652000,-192.710337,0.000268,2]
[426741845,1782774652000,-390.280005,0.000268,2]
[426741816,1782774652000,-151.0,0.00026797,7]
[426741846,1782774652000,-390.280005,0.000268,2]
[426741823,1782774652000,-170.143497,0.000268,2]
[426741818,1782774652000,-151.0,0.000268,2]
[426741817,1782774652000,-4508420.12479891,0.000268,2]
[426741879,1782774652000,-500.0,0.00027397,2]
[426741822,1782774652000,-170.143497,0.000268,2]
[426741819,1782774652000,-153.268466,0.000268,2]
[426741820,1782774652000,-151.0,0.000268,2]
[426741821,1782774652000,-151.301244,0.000268,2]
[426741824,1782774652000,-170.143497,0.000268,2]
[426741825,1782774652000,-206.895698,0.000268,2]
[426741832,1782774652000,-151.0,0.000268,2]
[426741830,1782774652000,-151.0,0.000268,2]
[426741841,1782774652000,-185.963335,0.000268,2]
[426741827,1782774652000,-206.895698,0.000268,2]
[426741836,1782774652000,-1875.057436,0.000268,2]
[426741829,1782774652000,-206.895698,0.000268,2]
[426741828,1782774652000,-206.895698,0.000268,2]
[426741835,1782774652000,-1875.057436,0.000268,2]
[426741834,1782774652000,-238.408824,0.000268,2]
[426741833,1782774652000,-151.0,0.000268,2]
[426741831,1782774652000,-151.0,0.000268,2]
[426741839,1782774652000,-151.0,0.000268,2]
[426741848,1782774652000,-390.280005,0.000268,2]
[426741837,1782774652000,-1875.057436,0.000268,2]
[426741840,1782774652000,-151.0,0.000268,2]
[426741838,1782774652000,-1875.057436,0.000268,2]
[426741826,1782774652000,-170.143497,0.000268,2]
[426741873,1782774652000,-3635.0,0.000273,2]
[426741921,1782774652000,-4252.868314,0.00027397,2]
[426741872,1782774652000,-232.16,0.00027171,30]
[426741916,1782774652000,-4252.868314,0.00027397,2]
[426741908,1782774652000,-4252.868314,0.00027397,2]
[426741910,1782774652000,-4252.868314,0.00027397,2]
[426741918,1782774652000,-4252.868314,0.00027397,2]
[426741912,1782774652000,-4252.868314,0.00027397,2]
[426741907,1782774652000,-4252.868314,0.00027397,2]
[426741911,1782774652000,-4252.868314,0.00027397,2]
[426741914,1782774652000,-4252.868314,0.00027397,2]
[426741917,1782774652000,-4252.868314,0.00027397,2]
[426741915,1782774652000,-4252.868314,0.00027397,2]
[426741913,1782774652000,-4252.868314,0.00027397,2]
[426741909,1782774652000,-4252.868314,0.00027397,2]
[426741906,1782774652000,-4252.868314,0.00027397,2]
[426741925,1782774652000,-16550.16,0.00027397,10]
[426741930,1782774652000,-257.29701076,0.00027397,2]
[426741929,1782774652000,-1100.961456,0.00027397,2]
[426741920,1782774652000,-4252.868314,0.00027397,2]
[426741922,1782774652000,-3098.76,0.00027397,2]
[426741919,1782774652000,-4252.868314,0.00027397,2]
[426741927,1782774652000,-1100.961456,0.00027397,2]
[426741931,1782774652000,-162.54830831,0.00027397,2]
[426741928,1782774652000,-1100.961456,0.00027397,2]
[426741923,1782774652000,-1026.86,0.00027397,2]
[426741924,1782774652000,-19860.19,0.00027397,10]
[426741933,1782774652000,-487.64492494,0.00027397,2]
[426741874,1782774652000,-505.0,0.00027342,13]
[426741926,1782774652000,-1100.961456,0.00027397,2]
[426741895,1782774652000,-883.146791,0.00027397,2]
[426741932,1782774652000,-325.09661662,0.00027397,2]
[426741900,1782774652000,-883.146791,0.00027397,2]
[426741905,1782774652000,-883.146791,0.00027397,2]
[426741871,1782774652000,-521.16,0.00027095,7]
[426741877,1782774652000,-599.49168476,0.00027397,2]
[426741878,1782774652000,-500.0,0.00027397,2]
[426741880,1782774652000,-500.0,0.00027397,2]
[426741882,1782774652000,-500.0,0.00027397,2]
[426741876,1782774652000,-500.0,0.00027397,2]
[426741887,1782774652000,-500.0,0.00027397,2]
[426741888,1782774652000,-638.54236203,0.00027397,2]
[426741892,1782774652000,-300.0,0.00027397,2]
[426741884,1782774652000,-500.0,0.00027397,2]
[426741886,1782774652000,-500.0,0.00027397,2]
[426741890,1782774652000,-373.03697452,0.00027397,2]
[426741881,1782774652000,-500.0,0.00027397,2]
[426741883,1782774652000,-500.0,0.00027397,2]
[426741901,1782774652000,-883.146791,0.00027397,2]
[426741902,1782774652000,-883.146791,0.00027397,2]
[426741898,1782774652000,-883.146791,0.00027397,2]
[426741897,1782774652000,-883.146791,0.00027397,2]
[426741893,1782774652000,-1476.29,0.00027397,2]
[426741899,1782774652000,-883.146791,0.00027397,2]
[426741904,1782774652000,-883.146791,0.00027397,2]
[426741903,1782774652000,-883.146791,0.00027397,2]
[426741896,1782774652000,-883.146791,0.00027397,2]
[426741889,1782774652000,-150.0,0.00027397,2]
[426741891,1782774652000,-1500.0,0.00027397,2]
[426741885,1782774652000,-500.0,0.00027397,2]
[426741894,1782774652000,-883.146791,0.00027397,2]
[426741980,1782774653000,-917.59907842,0.00027724,2]
[426741972,1782774653000,-154.77,0.00027641,2]
[426741979,1782774653000,-1095.74005407,0.00027724,2]
[426741970,1782774653000,-1114.06049312,0.00027627,2]
[426741962,1782774653000,-970.7572155,0.00027615,2]
[426741971,1782774653000,-232.16,0.00027628,7]
[426741969,1782774653000,-1061.61560371,0.00027626,2]
[426741963,1782774653000,-1096.10006908,0.00027615,2]
[426741964,1782774653000,-990.2519309,0.00027615,2]
[426741960,1782774653000,-955.78883727,0.00027615,2]
[426741968,1782774653000,-6087.0,0.00027622,2]
[426741975,1782774653000,-335.77,0.00027711,7]
[426741983,1782774653000,-154.77,0.00027763,7]
[426741973,1782774653000,-154.77,0.00027672,7]
[426741974,1782774653000,-154.77,0.00027702,30]
[426741977,1782774653000,-228.21,0.00027711,7]
[426741978,1782774653000,-230.99,0.00027711,7]
[426741990,1782774653000,-232.16,0.00027857,30]
[426741987,1782774653000,-232.0,0.0002784,2]
[426741985,1782774653000,-154.77,0.00027824,2]
[426741982,1782774653000,-459.66118405,0.00027757,2]
[426741984,1782774653000,-154.77,0.00027794,30]
[426741981,1782774653000,-154.77,0.00027733,2]
[426741989,1782774653000,-154.77,0.00027855,7]
[426741961,1782774653000,-903.70559543,0.00027615,2]
[426741976,1782774653000,-337.82,0.00027711,7]
[426741957,1782774653000,-283.0,0.00027612,2]
[426741954,1782774653000,-1110.85410007,0.0002761,2]
[426741958,1782774653000,-1278.0,0.00027612,2]
[426741988,1782774653000,-154.46935744,0.00027847,2]
[426741943,1782774653000,-162.63,0.000275,7]
[426741940,1782774653000,-207.5205915,0.00027446,2]
[426741936,1782774653000,-326.59,0.000274,7]
[426741937,1782774653000,-322.1,0.000274,7]
[426741942,1782774653000,-1000.0,0.000275,2]
[426741941,1782774653000,-151.0,0.00027448,7]
[426741934,1782774653000,-1208.60850225,0.00027397,2]
[426741939,1782774653000,-154.8863578,0.00027404,2]
[426741935,1782774653000,-282.71,0.000274,7]
[426741944,1782774653000,-500.0,0.000275,7]
[426741945,1782774653000,-560.0,0.000275,7]
[426741948,1782774653000,-228.21,0.0002755,30]
[426741955,1782774653000,-154.77,0.00027611,30]
[426741946,1782774653000,-335.77,0.0002755,30]
[426741947,1782774653000,-337.82,0.0002755,30]
[426741951,1782774653000,-154.77,0.0002758,7]
[426741956,1782774653000,-3565.0,0.00027612,2]
[426741953,1782774653000,-1046.5840802,0.0002761,2]
[426741952,1782774653000,-1082.38325447,0.0002761,2]
[426741949,1782774653000,-154.77,0.0002755,2]
[426741950,1782774653000,-230.99,0.0002755,30]
[426741966,1782774653000,-1230.0,0.0002762,2]
[426741959,1782774653000,-970.22267185,0.00027613,2]
[426741965,1782774653000,-1129.55631188,0.00027615,2]
[426741967,1782774653000,-3651.0,0.00027622,2]
[426741986,1782774653000,-618.0,0.0002784,2]
[426741938,1782774653000,-232.16,0.000274,2]
[426742000,1782774653000,-154.77,0.00027946,7]
[426742020,1782774653000,-337.82,0.00028194,7]
[426742023,1782774653000,-230.99,0.00028194,7]
[426742024,1782774653000,-282.71,0.000282,7]
[426742022,1782774653000,-228.21,0.00028194,7]
[426742019,1782774653000,-335.77,0.00028194,7]
[426742032,1782774653000,-4051.29764306,0.00028474,2]
[426742038,1782774653000,-309.0,0.00028588,30]
[426742029,1782774653000,-335.77,0.00028355,2]
[426742028,1782774653000,-1000.0,0.00028315,2]
[426742034,1782774653000,-337.82,0.00028516,30]
[426742030,1782774653000,-337.82,0.00028355,2]
[426742031,1782774653000,-152.0,0.00028382,4]
[426742026,1782774653000,-322.1,0.000282,7]
[426742036,1782774653000,-201.0,0.00028588,30]
[426742033,1782774653000,-335.77,0.00028516,30]
[426742035,1782774653000,-232.16,0.00028542,30]
[426742046,1782774653000,-941.21,0.00028599,2]
[426742040,1782774653000,-206823.007297,0.0002859,2]
[426742039,1782774653000,-152.0,0.00028588,30]
[426742041,1782774653000,-157.0,0.0002859,30]